bitfinex-derivatives/quotes_SOLF0:USTF0_20241107
["timestamp","ask_amount","ask_price","bid_price","bid_amount"]
[1730962215612,5.81075703,186.47,186.34,6.59769171]
[1730962215923,5.81075703,186.47,186.3,5.2205]
[1730962215924,9.27799171,186.42,186.36,6.59769171]
[1730962216807,9.27799171,186.42,186.36,9.27879171]
[1730962218220,2.6801,186.44,186.38,6.59769171]
[1730962218511,6.59769171,186.44,186.38,6.59769171]
[1730962218821,2.6802,186.43,186.38,9.27859171]
[1730962219913,2.6799,186.45,186.39,2.6806]
[1730962220115,6.59769171,186.46,186.39,6.59769171]
[1730962220320,6.59769171,186.46,186.37,3.875]
[1730962220321,6.59769171,186.46,186.41,6.59769171]
[1730962220518,9.27749171,186.46,186.41,9.27809171]
[1730962220709,7.46671736,186.5,186.37,3.875]
[1730962220911,6.59769171,186.44,186.38,6.59769171]
[1730962221118,3.66,186.51,186.35,6.59769171]
[1730962221319,6.59769171,186.41,186.37,6.59769171]
[1730962222013,2.6801,186.44,186.38,2.6809]
[1730962222210,9.27779171,186.44,186.38,2.6809]
[1730962222416,9.27779171,186.44,186.39,2.6807]
[1730962222612,6.59769171,186.44,186.39,9.27839171]
[1730962223124,6.59769171,186.46,186.41,6.59769171]
[1730962223311,2.6796,186.47,186.41,6.59769171]
[1730962223511,6.59769171,186.49,186.44,6.59769171]
[1730962223921,2.6792,186.5,186.44,6.59769171]
[1730962224123,7.46671736,186.53,186.46,6.59769171]
[1730962224417,6.59769171,186.52,186.46,6.59769171]
[1730962225014,7.46671736,186.53,186.48,6.59769171]
[1730962225219,9.32686374,186.54,186.48,6.59769171]
[1730962225526,9.27629171,186.54,186.48,6.59769171]
[1730962226618,2.6786,186.54,186.48,6.59769171]
[1730962226819,6.59769171,186.55,186.48,6.59769171]
[1730962227024,9.27619171,186.55,186.47,2.6795]
[1730962227220,9.27619171,186.55,186.5,6.59769171]
[1730962227816,2.6785,186.55,186.5,6.59769171]
[1730962228122,6.59769171,186.57,186.51,6.59769171]
[1730962228425,3.66,186.6,186.53,6.59769171]
[1730962228621,2.6777,186.6,186.54,6.59769171]
[1730962228819,9.27539171,186.6,186.54,6.59769171]
[1730962229021,7.46671736,186.7,186.56,6.59769171]
[1730962229214,9.27489171,186.64,186.57,6.59769171]
[1730962229520,6.59769171,186.64,186.57,6.59769171]
[1730962230025,6.59769171,186.65,186.59,6.59769171]
[1730962230826,6.59769171,186.65,186.52,3.8599]
[1730962230827,6.59769171,186.61,186.55,6.59769171]
[1730962231127,9.27559171,186.59,186.54,6.59769171]
[1730962231327,6.59769171,186.59,186.52,3.8599]
[1730962231522,6.59769171,186.57,186.52,2.5769]
[1730962231821,2.6783,186.56,186.52,2.5769]
[1730962232025,6.59769171,186.57,186.52,2.5769]
[1730962232324,3.66,186.62,186.53,6.59769171]
[1730962232831,3.66,186.62,186.56,6.59769171]
[1730962232832,6.59769171,186.62,186.56,6.59769171]
[1730962233016,2.64826251,186.69,186.58,6.59769171]
[1730962233222,3.66,186.69,186.6,6.59769171]
[1730962233419,2.6771,186.65,186.57,12.96397218]
[1730962234128,2.6769,186.66,186.56,3.66]
[1730962234317,2.6769,186.66,186.59,2.6779]
[1730962234515,10.28577218,186.71,186.59,2.6779]
[1730962234728,2.6768,186.67,186.59,2.6779]
[1730962236021,7.45874521,186.73,186.64,10.28577218]
[1730962236324,10.28577218,186.76,186.64,10.28577218]
[1730962236520,10.45874521,186.83,186.66,2.6768]
[1730962236724,10.28577218,186.75,186.63,1.268]
[1730962237127,2.6763,186.71,186.64,2.677]
[1730962237324,10.28577218,186.75,186.63,1.268]
[1730962237532,10.28577218,186.72,186.63,1.268]
[1730962237732,2.6764,186.7,186.63,1.268]
[1730962238832,10.28577218,186.75,186.64,2.6771]
[1730962239028,7.45874521,186.78,186.67,10.28577218]
[1730962239225,10.28577218,186.78,186.67,10.28577218]
[1730962239829,13.94577218,186.81,186.67,10.28577218]
[1730962240034,2.6753,186.77,186.7,10.28577218]
[1730962240932,2.6757,186.75,186.68,4.9881]
[1730962241135,2.6757,186.75,186.68,1.3281]
[1730962241330,10.28577218,186.76,186.64,13.94577218]
[1730962241529,2.6759,186.74,186.64,15.24757218]
[1730962242031,10.28577218,186.76,186.65,10.28577218]
[1730962242430,10.28577218,186.79,186.67,2.6767]
[1730962242735,10.28577218,186.79,186.64,4.9618]
[1730962242929,10.28577218,186.81,186.7,10.28577218]
[1730962243136,10.28577218,186.81,186.71,3.68]
[1730962243335,2.6749,186.8,186.71,3.68]
[1730962243532,10.28577218,186.81,186.71,3.68]
[1730962244141,10.28577218,186.81,186.71,13.96577218]
[1730962244541,10.28577218,186.84,186.71,13.96577218]
[1730962244736,2.675,186.79,186.73,2.6758]
[1730962245342,10.28577218,186.84,186.72,2.5211]
[1730962245642,2.6754,186.77,186.72,2.5211]
[1730962246935,10.28577218,186.78,186.72,2.5211]
[1730962246936,2.6755,186.76,186.72,2.5211]
[1730962247338,10.28577218,186.78,186.7,3.66]
[1730962247747,2.6758,186.74,186.67,10.28577218]
[1730962247946,10.28577218,186.75,186.66,3.66]
[1730962248240,10.28577218,186.75,186.63,10.28577218]
[1730962248448,3.66,186.79,186.64,3.66]
[1730962248744,10.28577218,186.75,186.64,3.66]
[1730962249341,10.28577218,186.75,186.63,6.3372]
[1730962249542,2.6766,186.69,186.62,10.28577218]
[1730962249847,2.6766,186.69,186.63,3.66]
[1730962251041,2.6766,186.69,186.62,12.96317218]
[1730962251247,2.6766,186.69,186.63,3.66]
[1730962251649,3.66,186.79,186.64,10.28577218]
[1730962251837,10.28577218,186.77,186.64,10.28577218]
[1730962252041,2.6763,186.71,186.64,10.28577218]
[1730962252742,2.6763,186.71,186.64,12.96287218]
[1730962252939,10.28577218,186.74,186.62,10.28577218]
[1730962253144,10.28577218,186.74,186.62,12.96307218]
[1730962253643,2.6766,186.69,186.62,16.62307218]
[1730962253949,2.6766,186.69,186.63,2.6773]
[1730962255045,2.62336343,186.76,186.61,2.5036]
[1730962255046,2.6767,186.68,186.61,2.5036]
[1730962256447,2.6769,186.66,186.61,2.5036]
[1730962256648,10.28577218,186.71,186.61,2.5036]
[1730962256845,13.94577218,186.73,186.62,10.28577218]
[1730962257149,13.94577218,186.73,186.61,2.5036]
[1730962257150,10.28577218,186.76,186.64,10.28577218]
[1730962257344,10.28577218,186.76,186.66,10.28577218]
[1730962257544,2.6758,186.74,186.68,2.6766]
[1730962257746,3.66,186.78,186.66,10.28577218]
[1730962258047,13.94577218,186.79,186.66,10.28577218]
[1730962258251,2.6756,186.76,186.68,2.6766]
[1730962258550,10.28577218,186.81,186.7,10.28577218]
[1730962259349,2.6755,186.76,186.7,12.96197218]
[1730962259545,7.41609804,186.86,186.71,3.66]
[1730962259750,17.70187022,186.86,186.72,10.28577218]
[1730962259941,2.6747,186.82,186.75,12.96127218]
[1730962260144,17.70187022,186.86,186.75,12.96127218]
[1730962260555,2.6747,186.82,186.75,12.96127218]
[1730962260847,2.6747,186.82,186.75,10.28577218]
[1730962261041,2.6745,186.83,186.75,10.28577218]
[1730962261648,7.43354776,186.86,186.76,2.6754]
[1730962261649,2.6747,186.81,186.76,2.6754]
[1730962261945,2.6747,186.81,186.75,10.28577218]
[1730962262544,10.28577218,186.84,186.72,10.28577218]
[1730962262748,2.6752,186.78,186.72,10.28577218]
[1730962263549,7.43354776,186.86,186.75,10.28577218]
[1730962263750,12.94428651,186.88,186.76,3.66]
[1730962263941,10.28577218,186.85,186.76,3.66]
[1730962264150,2.6747,186.82,186.76,3.66]
[1730962264848,2.6746,186.83,186.77,2.6752]
[1730962265852,2.6746,186.82,186.77,2.6752]
[1730962267948,10.28577218,186.85,186.75,10.28577218]
[1730962268144,10.28577218,186.85,186.71,3.8792]
[1730962268145,10.28577218,186.83,186.72,10.28577218]
[1730962268345,10.28577218,186.83,186.71,3.8792]
[1730962268547,1.2379,186.82,186.73,10.28577218]
[1730962268748,10.28577218,186.8,186.63,3.66]
[1730962268942,10.28577218,186.8,186.67,10.28577218]
[1730962269149,10.28577218,186.8,186.68,2.6766]
[1730962269150,2.6754,186.77,186.68,2.6766]
[1730962269357,10.28577218,186.8,186.67,10.28577218]
[1730962270158,11.11484125,186.87,186.73,10.28577218]
[1730962270348,13.94577218,186.87,186.76,10.28577218]
[1730962270953,13.94577218,186.87,186.76,12.96117218]
[1730962271268,3.66,186.87,186.76,12.96117218]
[1730962271452,2.6742,186.85,186.79,10.28577218]
[1730962273863,2.6743,186.84,186.79,10.28577218]
[1730962274160,10.28577218,186.84,186.74,1.255]
[1730962274358,13.98577218,186.87,186.75,10.28577218]
[1730962275764,2.6748,186.81,186.75,10.28577218]
[1730962276851,2.6742,186.85,186.79,2.6749]
[1730962277057,11.15484125,186.87,186.77,10.28577218]
[1730962277251,3.7,186.87,186.77,10.28577218]
[1730962277563,3.7,186.87,186.77,13.98577218]
[1730962278765,2.6744,186.84,186.78,2.675]
[1730962279954,2.6744,186.84,186.77,13.98577218]
[1730962280159,2.6744,186.84,186.8,10.28577218]
[1730962280656,11.15484125,186.91,186.8,10.28577218]
[1730962280860,2.6745,186.83,186.8,10.28577218]
[1730962281266,7.45484125,186.91,186.8,10.28577218]
[1730962281464,13.98577218,186.94,186.81,1.2272]
[1730962281660,21.44061343,186.94,186.81,1.2272]
[1730962282167,13.98577218,186.94,186.81,1.2272]
[1730962282669,2.6742,186.85,186.81,3.9019]
[1730962283866,2.6742,186.85,186.81,1.2272]
[1730962284564,2.6744,186.84,186.81,1.2272]
[1730962286362,10.28577218,186.92,186.81,3.9018]
[1730962286363,2.6736,186.89,186.81,3.9018]
[1730962286673,8.72794125,186.93,186.81,5.2067]
[1730962286868,8.72794125,186.93,186.81,2.5321]
[1730962287059,1.2731,186.93,186.81,2.5321]
[1730962287467,2.6739,186.87,186.82,2.6746]
[1730962287867,17.74061343,186.94,186.83,13.98577218]
[1730962288075,18.93789383,187.14,186.84,2.6742]
[1730962288076,7.45484125,186.93,186.84,2.6742]
[1730962288367,18.98591343,186.97,186.84,2.6742]
[1730962288569,2.6735,186.9,186.85,2.674]
[1730962290766,2.6735,186.9,186.83,13.98577218]
[1730962290963,2.6735,186.9,186.86,12.95977218]
[1730962291367,2.6735,186.9,186.86,10.28577218]
[1730962292572,2.6735,186.9,186.86,12.95977218]
[1730962293567,2.6735,186.9,186.86,10.28577218]
[1730962293768,2.6733,186.92,186.86,10.28577218]
[1730962293975,17.74061343,186.97,186.86,10.28577218]
[1730962294273,17.74061343,186.97,186.86,12.95977218]
[1730962294469,2.6734,186.91,186.86,12.95977218]
[1730962297282,2.6734,186.91,186.87,2.6738]
[1730962297986,2.6734,186.91,186.86,10.28577218]
[1730962298175,2.6734,186.91,186.86,12.95967218]
[1730962298379,2.61009752,186.96,186.86,10.28577218]
[1730962298579,2.6736,186.9,186.86,10.28577218]
[1730962300282,2.6736,186.89,186.86,10.28577218]
[1730962301681,2.63473315,186.95,186.86,10.28577218]
[1730962301682,17.74061343,186.97,186.86,10.28577218]
[1730962302079,2.6737,186.89,186.86,10.28577218]
[1730962304487,2.6735,186.9,186.86,10.28577218]
[1730962305284,2.6733,186.92,186.86,12.95977218]
[1730962306277,2.6733,186.92,186.88,10.28577218]
[1730962306481,2.673,186.94,186.88,12.95937218]
[1730962308686,2.6727,186.96,186.91,12.95897218]
[1730962309183,7.45484125,187.01,186.93,10.28577218]
[1730962309379,2.6724,186.98,186.93,10.28577218]
[1730962309583,1.273,187.02,186.93,10.28577218]
[1730962310893,2.6721,187.0,186.93,10.28577218]
[1730962311190,1.273,187.02,186.93,10.28577218]
[1730962311587,2.6725,186.97,186.93,10.28577218]
[1730962313687,2.6726,186.96,186.93,10.28577218]
[1730962317186,1.273,187.02,186.9,10.28577218]
[1730962317387,1.273,187.02,186.93,10.28577218]
[1730962317587,1.273,187.02,186.91,10.28577218]
[1730962318196,1.273,187.02,186.91,12.95907218]
[1730962318689,1.273,187.02,186.9,1.2388]
[1730962318690,2.6726,186.97,186.93,10.28577218]
[1730962318895,1.273,187.02,186.93,10.28577218]
[1730962319197,2.6728,186.95,186.93,10.28577218]
[1730962319492,6.57417436,187.01,186.94,6.57417436]
[1730962319696,6.57417436,187.01,186.96,6.57417436]
[1730962320894,2.6724,186.97,186.96,6.57417436]
[1730962321087,6.57417436,187.01,186.95,6.57417436]
[1730962322088,2.6727,186.96,186.95,6.57417436]
[1730962323697,2.6724,186.98,186.95,6.57417436]
[1730962323892,2.6724,186.98,186.96,6.57417436]
[1730962325501,6.57417436,187.02,186.96,6.57417436]
[1730962325700,2.6724,186.97,186.96,6.57417436]
[1730962326199,1.2202,187.05,186.92,6.57417436]
[1730962326200,2.6727,186.96,186.92,6.57417436]
[1730962326403,1.2202,187.05,186.94,6.57417436]
[1730962326594,6.57417436,187.02,186.9,3.7943]
[1730962326796,2.6723,186.99,186.97,6.57417436]
[1730962327594,6.57417436,187.02,186.98,6.57417436]
[1730962327595,2.6718,187.02,186.98,6.57417436]
[1730962327801,10.66274125,187.15,186.97,3.54]
[1730962327995,6.57417436,187.1,186.98,1.2335]
[1730962328203,6.57417436,187.1,187.04,6.57417436]
[1730962328204,2.6712,187.06,187.04,6.57417436]
[1730962328399,6.57417436,187.08,186.98,3.8176]
[1730962328595,6.57417436,187.08,187.03,6.57417436]
[1730962329007,2.6717,187.03,186.98,3.8176]
[1730962329195,6.57417436,187.05,186.98,9.06047436]
[1730962329401,10.53417436,187.07,187.0,6.57417436]
[1730962329603,6.57417436,187.05,186.99,6.57417436]
[1730962330309,2.6718,187.02,186.99,6.57417436]
[1730962331705,2.6719,187.01,186.99,6.57417436]
[1730962332106,2.6719,187.01,186.98,2.4863]
[1730962332307,2.6719,187.01,187.0,6.57417436]
[1730962332609,6.57417436,187.04,187.0,6.57417436]
[1730962332811,2.6718,187.02,187.0,6.57417436]
[1730962333640,2.6718,187.02,187.01,6.57417436]
[1730962334330,2.6716,187.03,187.01,6.57417436]
[1730962334620,6.57417436,187.08,187.01,6.57417436]
[1730962334822,6.57417436,187.08,187.03,6.57417436]
[1730962335522,6.57417436,187.08,186.98,2.4863]
[1730962335716,2.6714,187.05,187.03,6.57417436]
[1730962337225,7.45484125,187.14,187.03,6.57417436]
[1730962337425,6.57417436,187.1,187.03,6.57417436]
[1730962337919,6.57417436,187.1,187.05,6.57417436]
[1730962339020,2.671,187.08,187.05,6.57417436]
[1730962339218,2.671,187.08,187.02,2.6717]
[1730962339716,6.57417436,187.12,187.06,6.57417436]
[1730962339919,2.671,187.07,187.06,6.57417436]
[1730962340116,3.96,187.14,187.06,9.24537436]
[1730962340117,7.45484125,187.14,187.06,9.24537436]
[1730962340310,38.54,187.28,187.06,9.24537436]
[1730962340311,6.57417436,187.19,187.13,6.57417436]
[1730962340517,9.26922766,187.19,187.12,1.31251088]
[1730962340714,6.57417436,187.17,187.07,2.6046]
[1730962340923,6.57417436,187.13,187.08,6.57417436]
[1730962341333,2.67789943,187.17,187.1,6.57417436]
[1730962341334,2.67,187.15,187.1,6.57417436]
[1730962341515,6.57417436,187.16,187.1,6.57417436]
[1730962341709,9.21437949,187.14,187.08,6.57417436]
[1730962341913,6.57417436,187.12,187.02,4.2]
[1730962342113,6.57417436,187.1,186.99,4.2]
[1730962342313,6.57417436,187.1,187.03,6.57417436]
[1730962342526,2.6711,187.07,187.03,6.57417436]
[1730962342819,2.6711,187.07,187.0,2.6719]
[1730962342820,2.6711,187.07,187.05,6.57417436]
[1730962345211,2.6712,187.06,187.0,2.6719]
[1730962345420,2.6712,187.06,187.04,6.57417436]
[1730962347415,2.64317392,187.1,187.04,6.57417436]
[1730962347624,6.57417436,187.11,187.04,6.57417436]
[1730962347921,6.57417436,187.11,186.99,4.2]
[1730962347922,6.57417436,187.09,186.99,4.2]
[1730962348120,6.57417436,187.09,187.03,6.57417436]
[1730962348313,6.57417436,187.07,186.96,1.2774]
[1730962348512,6.57417436,187.07,187.01,6.57417436]
[1730962348719,6.57417436,187.06,186.96,1.2774]
[1730962348918,6.57417436,187.06,187.0,6.57417436]
[1730962349423,2.6718,187.02,186.96,1.2774]
[1730962349624,2.6718,187.02,187.0,6.57417436]
[1730962350018,6.57417436,187.03,186.96,1.2774]
[1730962350225,6.57417436,187.0,186.89,2.6735]
[1730962350421,4.2,187.03,186.71,2.66355076]
[1730962350422,6.57417436,186.96,186.85,3.7553]
[1730962350630,2.6734,186.91,186.85,3.7553]
[1730962350825,4.2,186.96,186.9,6.57417436]
[1730962351028,2.67432631,186.96,186.92,6.57417436]
[1730962351227,2.6732,186.92,186.9,6.57417436]
[1730962351428,4.2,186.98,186.9,6.57417436]
[1730962351733,6.57417436,186.97,186.92,6.57417436]
[1730962351931,2.6729,186.94,186.92,6.57417436]
[1730962352527,6.57417436,186.97,186.86,1.3116]
[1730962352528,2.6725,186.97,186.93,6.57417436]
[1730962352724,2.6725,186.97,186.95,6.57417436]
[1730962352925,4.2,187.02,186.95,6.57417436]
[1730962353124,10.77417436,187.02,186.97,6.57417436]
[1730962353927,2.6719,187.01,186.97,6.57417436]
[1730962354232,10.77417436,187.02,186.97,6.57417436]
[1730962354423,4.2,187.02,186.98,6.57417436]
[1730962355024,6.8718,187.02,187.0,6.57417436]
[1730962355224,6.57417436,187.05,187.0,6.57417436]
[1730962355731,6.57417436,187.07,187.01,6.57417436]
[1730962356433,2.6717,187.03,187.01,6.57417436]
[1730962356844,6.57417436,187.07,187.01,6.57417436]
[1730962357137,2.6719,187.01,187.0,6.57417436]
[1730962357540,6.57417436,187.05,187.0,6.57417436]
[1730962357939,7.26895187,187.07,187.0,6.57417436]
[1730962358233,6.7266,187.08,187.02,6.57417436]
[1730962358234,10.77417436,187.08,187.02,6.57417436]
[1730962358432,2.6715,187.04,187.02,6.57417436]
[1730962358634,10.77417436,187.08,187.02,6.57417436]
[1730962359035,2.6715,187.04,187.02,6.57417436]
[1730962359237,7.95865187,187.11,186.95,2.548]
[1730962359542,6.57417436,187.09,187.03,6.57417436]
[1730962359741,2.6715,187.04,187.03,6.57417436]
[1730962360239,6.57417436,187.09,187.03,6.57417436]
[1730962360536,2.6713,187.06,187.03,6.57417436]
[1730962360935,2.6713,187.05,187.01,6.57417436]
[1730962361136,6.57417436,187.06,187.01,6.57417436]
[1730962361836,6.57417436,187.06,187.0,6.57417436]
[1730962362239,6.57417436,187.06,187.01,6.57417436]
[1730962362429,2.65898742,187.1,187.01,6.57417436]
[1730962362629,2.671,187.07,187.03,6.57417436]
[1730962363236,2.6709,187.09,187.02,3.9598]
[1730962363437,0.689,187.17,187.04,6.57417436]
[1730962363632,6.57417436,187.12,187.06,6.57417436]
[1730962363833,2.6703,187.12,187.08,6.57417436]
[1730962364040,9.31062674,187.15,187.1,6.57417436]
[1730962364332,2.6703,187.13,187.1,6.57417436]
[1730962365438,6.57417436,187.16,187.07,2.671]
[1730962365439,2.6703,187.12,187.09,6.57417436]
[1730962365640,2.67121599,187.16,187.09,6.57417436]
[1730962365847,9.24539035,187.16,187.11,6.57417436]
[1730962366141,6.57417436,187.16,187.11,6.57417436]
[1730962366336,2.6702,187.13,187.11,6.57417436]
[1730962367350,2.6702,187.13,187.07,2.671]
[1730962367642,9.24672716,187.16,187.09,6.57417436]
[1730962367643,2.6725528,187.16,187.09,6.57417436]
[1730962367835,6.57417436,187.16,187.1,6.57417436]
[1730962368036,9.26688184,187.16,187.1,6.57417436]
[1730962368447,2.6701,187.14,187.1,6.57417436]
[1730962369146,9.26688184,187.16,187.1,6.57417436]
[1730962369147,2.6703,187.13,187.1,6.57417436]
[1730962370446,2.6703,187.12,187.1,6.57417436]
[1730962370840,9.26688184,187.16,187.09,6.57417436]
[1730962371048,9.26688184,187.16,187.04,1.2213]
[1730962371049,6.57417436,187.1,187.04,7.79547436]
[1730962371343,6.57417436,187.06,187.02,1.2881]
[1730962371550,2.6716,187.04,187.02,1.2881]
[1730962372048,1.2645,187.15,187.03,6.57417436]
[1730962372049,7.26895187,187.14,187.03,6.57417436]
[1730962372244,6.57417436,187.17,187.11,6.57417436]
[1730962373742,2.6702,187.13,187.11,6.57417436]
[1730962373947,2.66611871,187.16,187.12,6.57417436]
[1730962374451,6.57417436,187.2,187.12,6.57417436]
[1730962374861,6.57417436,187.18,187.12,6.57417436]
[1730962375258,6.57417436,187.16,187.1,6.57417436]
[1730962375765,2.6703,187.13,187.1,6.57417436]
[1730962375962,6.57417436,187.12,187.05,6.57417436]
[1730962376260,6.57417436,187.1,187.05,6.57417436]
[1730962376451,2.6709,187.08,187.05,6.57417436]
[1730962376854,6.57417436,187.1,187.02,2.6717]
[1730962377053,6.57417436,187.1,186.93,16.1]
[1730962377054,2.671,187.07,187.04,6.57417436]
[1730962377455,2.671,187.07,187.01,10.27067391]
[1730962378252,2.671,187.07,187.0,14.71067391]
[1730962378859,2.671,187.07,187.01,2.6719]
[1730962379056,7.26895187,187.12,187.0,14.71067391]
[1730962379257,2.6708,187.09,187.03,10.27067391]
[1730962379659,10.27067391,187.13,187.04,1.2238]
[1730962380863,2.6708,187.09,187.04,1.2238]
[1730962381254,10.27067391,187.13,187.05,2.6713]
[1730962381562,10.27067391,187.13,186.92,16.1]
[1730962381764,10.27067391,187.13,186.99,10.27067391]
[1730962382262,2.671,187.07,187.01,2.6718]
[1730962382660,2.6712,187.06,187.0,2.672]
[1730962383068,10.27067391,187.11,186.99,10.27067391]
[1730962383360,2.6715,187.04,186.99,12.94277391]
[1730962383561,4.44,187.1,186.97,2.5399]
[1730962383754,2.6722,186.99,186.93,17.38367391]
[1730962383954,2.6722,186.99,186.93,12.94367391]
[1730962384160,2.6722,186.99,186.93,10.27067391]
[1730962385262,2.6718,187.02,186.97,2.6724]
[1730962386673,2.672,187.0,186.95,2.6727]
[1730962387773,2.672,187.0,186.94,3.9682]
[1730962389662,10.27067391,187.05,186.88,2.5254]
[1730962389862,2.6723,186.99,186.91,10.27067391]
[1730962390461,2.6723,186.99,186.93,2.6729]
[1730962390668,11.48985662,187.04,186.93,2.6729]
[1730962391568,2.6722,186.99,186.94,2.6729]
[1730962392870,2.6722,186.99,186.91,10.27067391]
[1730962393165,2.6722,186.99,186.93,2.6729]
[1730962393371,2.6722,186.99,186.91,10.27067391]
[1730962393573,2.6722,186.99,186.94,2.6729]
[1730962394467,2.672,187.0,186.95,2.6727]
[1730962394773,11.48985662,187.04,186.94,10.27067391]
[1730962394959,11.48985662,187.04,186.95,2.6727]
[1730962394960,2.672,187.01,186.95,2.6727]
[1730962395162,4.2,187.04,186.95,2.6727]
[1730962395368,4.2,187.04,186.94,10.27067391]
[1730962395675,4.2,187.04,186.97,10.27067391]
[1730962396069,8.50245662,187.08,186.99,2.672]
[1730962396266,1.2126,187.08,186.99,2.672]
[1730962396775,1.2126,187.08,186.99,12.94267391]
[1730962397566,2.6713,187.06,186.99,12.94267391]
[1730962397771,1.2126,187.08,186.99,12.94267391]
[1730962398673,2.6715,187.04,186.99,12.94267391]
[1730962399175,1.2126,187.08,186.99,10.27067391]
[1730962399773,2.6714,187.05,186.99,10.27067391]
[1730962399973,7.28985662,187.09,186.99,10.27067391]
[1730962400177,10.27067391,187.13,187.03,2.6715]
[1730962400178,7.28985662,187.12,187.03,2.6715]
[1730962400377,1.2554,187.14,187.05,10.27067391]
[1730962400774,1.2554,187.14,187.05,12.94187391]
[1730962401080,2.6706,187.11,187.05,10.27067391]
[1730962401282,2.6706,187.11,187.09,6.56997131]
[1730962402076,9.95965662,187.16,187.1,6.56997131]
[1730962402271,2.6698,187.16,187.13,6.56997131]
[1730962402773,6.56997131,187.19,187.13,6.56997131]
[1730962402979,2.6696,187.17,187.13,6.56997131]
[1730962403177,6.56997131,187.19,187.13,6.56997131]
[1730962403384,11.51764995,187.21,187.09,10.26224995]
[1730962403678,2.6698,187.16,187.09,10.26224995]
[1730962404071,2.6698,187.16,187.1,2.6706]
[1730962404277,2.6698,187.16,187.09,10.26224995]
[1730962405378,2.669,187.21,187.14,12.93214995]
[1730962405975,2.4934,187.26,187.14,10.26224995]
[1730962405976,2.6692,187.2,187.14,10.26224995]
[1730962406169,5.09918279,187.26,187.11,10.26224995]
[1730962406170,10.26224995,187.24,187.11,10.26224995]
[1730962406371,10.26224995,187.21,187.08,16.88504995]
[1730962406572,10.26224995,187.21,187.08,12.68504995]
[1730962406776,12.86803274,187.21,187.08,11.47564995]
[1730962406980,10.26224995,187.18,187.08,1.2134]
[1730962407278,9.89563941,187.21,187.14,10.26224995]
[1730962407279,7.28985662,187.21,187.14,10.26224995]
[1730962407473,4.2,187.25,187.14,10.26224995]
[1730962407675,11.48985662,187.25,187.14,10.26224995]
[1730962408476,2.6691,187.21,187.15,2.6697]
[1730962409086,7.28985662,187.25,187.2,2.6691]
[1730962409580,2.6684,187.26,187.2,2.6691]
[1730962410481,2.6685,187.25,187.19,12.93154995]
[1730962410783,8.59665662,187.33,187.19,10.26224995]
[1730962411080,2.6685,187.25,187.19,12.93144995]
[1730962411377,7.28985662,187.35,187.22,10.26224995]
[1730962411578,2.523,187.35,187.22,10.26224995]
[1730962411782,2.6682,187.28,187.22,10.26224995]
[1730962412180,10.26224995,187.33,187.22,10.26224995]
[1730962412381,2.6685,187.25,187.19,3.96]
[1730962412677,2.6685,187.25,187.18,10.26224995]
[1730962412874,7.28985662,187.3,187.18,10.26224995]
[1730962413081,2.6682,187.27,187.21,10.26224995]
[1730962414584,7.28985662,187.32,187.21,10.26224995]
[1730962414784,7.28985662,187.39,187.27,10.26224995]
[1730962414980,10.26224995,187.42,187.27,10.26224995]
[1730962415487,10.26224995,187.42,187.3,10.26224995]
[1730962415682,2.6665,187.39,187.3,10.26224995]
[1730962415883,12.99771695,187.42,187.3,10.26224995]
[1730962416084,10.26224995,187.39,187.25,11.58654995]
[1730962416390,2.6678,187.3,187.25,10.26224995]
[1730962417389,2.6673,187.33,187.27,2.6681]
[1730962417884,2.6673,187.33,187.25,10.26224995]
[1730962418776,2.6669,187.36,187.3,2.6677]
[1730962420185,2.6669,187.36,187.3,12.92994995]
[1730962421090,26.70320366,187.47,187.34,10.26224995]
[1730962421394,7.24148668,187.46,187.34,10.26224995]
[1730962421882,2.6664,187.4,187.34,10.26224995]
[1730962422081,7.24148668,187.46,187.34,10.26224995]
[1730962422276,14.20224995,187.45,187.34,10.26224995]
[1730962422482,2.6668,187.37,187.31,10.26224995]
[1730962423486,2.6668,187.37,187.31,12.92984995]
[1730962424186,7.24148668,187.46,187.34,10.26224995]
[1730962424491,10.26224995,187.54,187.42,10.26224995]
[1730962424677,2.6648,187.51,187.42,10.26224995]
[1730962424883,10.26224995,187.54,187.42,10.26224995]
[1730962425485,2.6652,187.48,187.42,10.26224995]
[1730962425882,2.665,187.49,187.44,10.26224995]
[1730962426284,3.94,187.56,187.44,10.26224995]
[1730962426587,3.7949,187.57,187.44,10.26224995]
[1730962426788,2.6649,187.51,187.44,10.26224995]